[Event "*** Titled Tuesday Blitz"]
[Site "Chess.com"]
[Date "2021.02.16"]
[Round "2"]
[White "m_ezat"]
[Black "jaramsdal"]
[Result "1-0"]
[WhiteElo "2498"]
[BlackElo "2305"]
[TimeControl "180+1"]
[EndTime "10:15:05 PST"]
[Termination "m_ezat won by resignation"]

1. d4 {[%clk 0:03:00.9]} 1... Nf6 {[%clk 0:02:59.8]} 2. c4 {[%clk 0:03:00.8]}
2... e6 {[%clk 0:03:00.3]} 3. Nc3 {[%clk 0:03:01.1]} 3... Bb4 {[%clk 0:03:00.9]}
4. e3 {[%clk 0:03:01.4]} 4... O-O {[%clk 0:03:00.5]} 5. a3 {[%clk 0:03:01.9]}
5... Bxc3+ {[%clk 0:02:58.2]} 6. bxc3 {[%clk 0:03:02.3]} 6... b6 {[%clk
0:02:56.1]} 7. Bd3 {[%clk 0:03:01.5]} 7... c5 {[%clk 0:02:56.3]} 8. Ne2 {[%clk
0:03:00.7]} 8... Nc6 {[%clk 0:02:53.7]} 9. O-O {[%clk 0:03:00.5]} 9... Na5
{[%clk 0:02:52.9]} 10. e4 {[%clk 0:03:00.8]} 10... d6 {[%clk 0:02:51.9]} 11. Bg5
{[%clk 0:03:00.5]} 11... Ba6 {[%clk 0:02:49.8]} 12. f4 {[%clk 0:03:00.5]} 12...
h6 {[%clk 0:02:49.4]} 13. Bh4 {[%clk 0:03:00.1]} 13... Qc7 {[%clk 0:02:32]} 14.
Bxf6 {[%clk 0:02:58.2]} 14... gxf6 {[%clk 0:02:32.9]} 15. Ng3 {[%clk 0:02:58.4]}
15... Bxc4 {[%clk 0:02:24.1]} 16. Nh5 {[%clk 0:02:57.1]} 16... Kh8 {[%clk
0:02:16.5]} 17. Nxf6 {[%clk 0:02:52.8]} 17... Qe7 {[%clk 0:02:08]} 18. e5 {[%clk
0:02:52.2]} 18... cxd4 {[%clk 0:01:45.1]} 19. Bxc4 {[%clk 0:02:48.7]} 19... dxe5
{[%clk 0:01:25.8]} 20. fxe5 {[%clk 0:02:47.5]} 20... Qc5 {[%clk 0:01:08.6]} 21.
Qd3 {[%clk 0:02:34.1]} 1-0

[Event "*** Titled Tuesday Blitz"]
[Site "Chess.com"]
[Date "2021.02.16"]
[Round "2"]
[White "FMKonstantin_Twitch"]
[Black "Fiona"]
[Result "1-0"]
[WhiteElo "2608"]
[BlackElo "2134"]
[TimeControl "180+1"]
[EndTime "10:15:11 PST"]
[Termination "FMKonstantin_Twitch won by resignation"]

1. Nf3 {[%clk 0:02:58.2]} 1... d6 {[%clk 0:02:58.3]} 2. d4 {[%clk 0:02:42.5]}
2... Bg4 {[%clk 0:02:56.6]} 3. g3 {[%clk 0:02:41.3]} 3... Bxf3 {[%clk
0:02:55.6]} 4. exf3 {[%clk 0:02:42.2]} 4... Nf6 {[%clk 0:02:55.6]} 5. Bg2 {[%clk
0:02:42.7]} 5... c6 {[%clk 0:02:53.2]} 6. O-O {[%clk 0:02:43.6]} 6... d5 {[%clk
0:02:53]} 7. c3 {[%clk 0:02:42.6]} 7... e6 {[%clk 0:02:53.4]} 8. f4 {[%clk
0:02:42.9]} 8... Be7 {[%clk 0:02:53.5]} 9. Nd2 {[%clk 0:02:42.9]} 9... O-O
{[%clk 0:02:52.7]} 10. Re1 {[%clk 0:02:40.6]} 10... Nbd7 {[%clk 0:02:52.3]} 11.
Nf3 {[%clk 0:02:40.3]} 11... Ne4 {[%clk 0:02:50.2]} 12. Ne5 {[%clk 0:02:38.7]}
12... Nxe5 {[%clk 0:02:42.3]} 13. fxe5 {[%clk 0:02:39.6]} 13... Ng5 {[%clk
0:02:22.5]} 14. h4 {[%clk 0:02:32.7]} 14... Ne4 {[%clk 0:02:22.1]} 15. Bxe4
{[%clk 0:02:33.2]} 15... dxe4 {[%clk 0:02:22.4]} 16. Rxe4 {[%clk 0:02:34.1]}
16... h6 {[%clk 0:02:15.3]} 17. Qh5 {[%clk 0:02:31.3]} 17... Re8 {[%clk
0:02:07.6]} 18. Rg4 {[%clk 0:02:27.6]} 18... g6 {[%clk 0:01:41.8]} 19. Qxh6
{[%clk 0:02:11.7]} 19... Bf8 {[%clk 0:01:41.1]} 20. Qf4 {[%clk 0:02:10.8]} 20...
Bg7 {[%clk 0:01:36.6]} 21. Qf3 {[%clk 0:02:07.3]} 1-0

[Event "*** Titled Tuesday Blitz"]
[Site "Chess.com"]
[Date "2021.02.16"]
[Round "2"]
[White "Parhamov"]
[Black "harvsp123"]
[Result "1-0"]
[WhiteElo "2907"]
[BlackElo "2554"]
[TimeControl "180+1"]
[EndTime "10:15:13 PST"]
[Termination "Parhamov won by resignation"]

1. d4 {[%clk 0:03:00.9]} 1... g6 {[%clk 0:02:55]} 2. e4 {[%clk 0:02:55.6]} 2...
Bg7 {[%clk 0:02:55.9]} 3. Nc3 {[%clk 0:02:55.3]} 3... d6 {[%clk 0:02:56.4]} 4.
Be3 {[%clk 0:02:39.7]} 4... a6 {[%clk 0:02:56.3]} 5. Qd2 {[%clk 0:02:39.5]} 5...
Nd7 {[%clk 0:02:54.8]} 6. h4 {[%clk 0:02:27.6]} 6... h5 {[%clk 0:02:54.2]} 7. f3
{[%clk 0:02:27.5]} 7... b5 {[%clk 0:02:51.4]} 8. Nge2 {[%clk 0:02:25.9]} 8...
Bb7 {[%clk 0:02:50.9]} 9. O-O-O {[%clk 0:02:25.6]} 9... Ngf6 {[%clk 0:02:45.7]}
10. Nf4 {[%clk 0:02:25.2]} 10... e6 {[%clk 0:02:44.8]} 11. Kb1 {[%clk
0:02:22.2]} 11... Qe7 {[%clk 0:02:44.8]} 12. Nce2 {[%clk 0:02:21.4]} 12... e5
{[%clk 0:02:31]} 13. Nd3 {[%clk 0:02:19.9]} 13... O-O {[%clk 0:02:29.1]} 14. Bh6
{[%clk 0:02:18.1]} 14... c5 {[%clk 0:02:26.4]} 15. d5 {[%clk 0:02:12.9]} 15...
a5 {[%clk 0:02:18.7]} 16. Nf2 {[%clk 0:02:12.7]} 16... c4 {[%clk 0:02:15.7]} 17.
g4 {[%clk 0:02:11.9]} 17... Nb6 {[%clk 0:02:11]} 18. Ng3 {[%clk 0:02:11.1]}
18... b4 {[%clk 0:02:08.8]} 19. Bxg7 {[%clk 0:02:03.9]} 19... Kxg7 {[%clk
0:02:08.7]} 20. Qg5 {[%clk 0:02:02.7]} 20... Bc8 {[%clk 0:01:46.6]} 21. Nxh5+
{[%clk 0:01:59.3]} 1-0

[Event "*** Titled Tuesday Blitz"]
[Site "Chess.com"]
[Date "2021.02.16"]
[Round "2"]
[White "rynos0411"]
[Black "szefru"]
[Result "1-0"]
[WhiteElo "2462"]
[BlackElo "2256"]
[TimeControl "180+1"]
[EndTime "10:15:32 PST"]
[Termination "rynos0411 won by resignation"]

1. d4 {[%clk 0:03:00.9]} 1... d5 {[%clk 0:02:58.5]} 2. c4 {[%clk 0:03:00.7]}
2... c6 {[%clk 0:02:58.3]} 3. cxd5 {[%clk 0:02:57]} 3... cxd5 {[%clk 0:02:58.1]}
4. Bf4 {[%clk 0:02:57.9]} 4... Nf6 {[%clk 0:02:58.1]} 5. e3 {[%clk 0:02:58.8]}
5... Nc6 {[%clk 0:02:58]} 6. Bb5 {[%clk 0:02:59.3]} 6... Qb6 {[%clk 0:02:56.7]}
7. Nc3 {[%clk 0:02:58.2]} 7... a6 {[%clk 0:02:56.5]} 8. Bxc6+ {[%clk 0:02:58.3]}
8... bxc6 {[%clk 0:02:55.2]} 9. Qc2 {[%clk 0:02:49.2]} 9... e6 {[%clk 0:02:52]}
10. Nf3 {[%clk 0:02:46.3]} 10... Bb4 {[%clk 0:02:50.5]} 11. O-O {[%clk
0:02:46.8]} 11... O-O {[%clk 0:02:47.4]} 12. Rac1 {[%clk 0:02:44]} 12... Bxc3
{[%clk 0:02:42.3]} 13. Qxc3 {[%clk 0:02:44]} 13... Bb7 {[%clk 0:02:42.3]} 14.
Ne5 {[%clk 0:02:43.8]} 14... Rac8 {[%clk 0:02:37.5]} 15. f3 {[%clk 0:02:38.9]}
15... Rfd8 {[%clk 0:02:33.1]} 16. Bg5 {[%clk 0:02:38.3]} 16... h6 {[%clk
0:02:31.6]} 17. Bxf6 {[%clk 0:02:38.3]} 17... gxf6 {[%clk 0:02:31.4]} 18. Nd3
{[%clk 0:02:39.2]} 18... a5 {[%clk 0:02:16.3]} 19. Nc5 {[%clk 0:02:38.4]} 19...
Rd6 {[%clk 0:02:05.7]} 20. Qe1 {[%clk 0:02:36.1]} 20... Kh7 {[%clk 0:01:55.1]}
21. Qg3 {[%clk 0:02:32.8]} 21... Rdd8 {[%clk 0:01:52.4]} 22. Qf4 {[%clk
0:02:30.2]} 22... f5 {[%clk 0:01:47.7]} 23. b3 {[%clk 0:02:28.1]} 23... Ba6
{[%clk 0:01:43.2]} 24. Rfe1 {[%clk 0:02:26.9]} 24... Rg8 {[%clk 0:01:35.9]} 25.
Qh4 {[%clk 0:02:11.5]} 25... Qd8 {[%clk 0:01:28.5]} 26. Qxd8 {[%clk 0:02:10.1]}
1-0

[Event "*** Titled Tuesday Blitz"]
[Site "Chess.com"]
[Date "2021.02.16"]
[Round "2"]
[White "volkanyirik"]
[Black "MoreChessJulia"]
[Result "0-1"]
[WhiteElo "2396"]
[BlackElo "2147"]
[TimeControl "180+1"]
[EndTime "10:15:37 PST"]
[Termination "MoreChessJulia won by resignation"]

1. e4 {[%clk 0:03:00.9]} 1... c5 {[%clk 0:02:58.8]} 2. Nc3 {[%clk 0:03:01.8]}
2... Nc6 {[%clk 0:02:57.6]} 3. f4 {[%clk 0:02:56.9]} 3... e6 {[%clk 0:02:56.4]}
4. Nf3 {[%clk 0:02:57.8]} 4... d5 {[%clk 0:02:54.9]} 5. Bb5 {[%clk 0:02:57.2]}
5... Nf6 {[%clk 0:02:51.5]} 6. e5 {[%clk 0:02:55.9]} 6... Nd7 {[%clk 0:02:50.6]}
7. O-O {[%clk 0:02:56]} 7... Qb6 {[%clk 0:02:49.4]} 8. Kh1 {[%clk 0:02:53.1]}
8... d4 {[%clk 0:02:45.4]} 9. Bxc6 {[%clk 0:02:52.3]} 9... Qxc6 {[%clk
0:02:44.4]} 10. Ne2 {[%clk 0:02:52.7]} 10... h6 {[%clk 0:02:43.6]} 11. d3 {[%clk
0:02:53.6]} 11... b6 {[%clk 0:02:42.3]} 12. Ng3 {[%clk 0:02:52.6]} 12... Bb7
{[%clk 0:02:41.5]} 13. Ne4 {[%clk 0:02:52.8]} 13... f5 {[%clk 0:02:38.6]} 14.
exf6 {[%clk 0:02:45]} 14... gxf6 {[%clk 0:02:38.1]} 15. Rf2 {[%clk 0:02:39.5]}
15... O-O-O {[%clk 0:02:36.6]} 16. a4 {[%clk 0:02:38.2]} 16... f5 {[%clk
0:02:36.2]} 17. Ng3 {[%clk 0:02:36.6]} 17... a5 {[%clk 0:02:34.7]} 18. c3 {[%clk
0:02:34.9]} 18... dxc3 {[%clk 0:02:28.6]} 19. bxc3 {[%clk 0:02:34.6]} 19... Bd6
{[%clk 0:02:27.7]} 20. Qe2 {[%clk 0:02:33.5]} 20... Bc7 {[%clk 0:02:22.4]} 21.
Bb2 {[%clk 0:02:30.8]} 21... h5 {[%clk 0:02:20.9]} 22. h4 {[%clk 0:02:27.2]}
22... Rhg8 {[%clk 0:02:16.7]} 23. Ng5 {[%clk 0:02:27]} 23... Rde8 {[%clk
0:02:06.9]} 24. d4 {[%clk 0:02:17.3]} 24... Nf6 {[%clk 0:02:01]} 25. dxc5 {[%clk
0:02:13.7]} 25... bxc5 {[%clk 0:01:56.3]} 26. Qb5 {[%clk 0:02:11.2]} 26... Ng4
{[%clk 0:01:51.8]} 27. Re2 {[%clk 0:02:01.2]} 27... Bxf4 {[%clk 0:01:48.2]} 28.
Qxc6+ {[%clk 0:01:59.5]} 28... Bxc6 {[%clk 0:01:46.7]} 29. Nxh5 {[%clk
0:01:59.8]} 29... Bxg5 {[%clk 0:01:44.5]} 30. hxg5 {[%clk 0:01:59.2]} 30... Rh8
{[%clk 0:01:41.7]} 0-1

[Event "*** Titled Tuesday Blitz"]
[Site "Chess.com"]
[Date "2021.02.16"]
[Round "2"]
[White "1random"]
[Black "volunteers1998"]
[Result "0-1"]
[WhiteElo "2377"]
[BlackElo "2099"]
[TimeControl "180+1"]
[EndTime "10:15:49 PST"]
[Termination "volunteers1998 won by resignation"]

1. f3 {[%clk 0:02:52]} 1... e5 {[%clk 0:02:57]} 2. Kf2 {[%clk 0:02:47.8]} 2...
Nf6 {[%clk 0:02:55.2]} 3. e3 {[%clk 0:02:47.6]} 3... d5 {[%clk 0:02:52.3]} 4. d4
{[%clk 0:02:47.9]} 4... exd4 {[%clk 0:02:49.7]} 5. exd4 {[%clk 0:02:48.8]} 5...
Bd6 {[%clk 0:02:45.9]} 6. Bd3 {[%clk 0:02:45.1]} 6... O-O {[%clk 0:02:45.2]} 7.
Ne2 {[%clk 0:02:44.7]} 7... c5 {[%clk 0:02:41.5]} 8. c3 {[%clk 0:02:30.7]} 8...
Nc6 {[%clk 0:02:38.1]} 9. dxc5 {[%clk 0:02:04.2]} 9... Bxc5+ {[%clk 0:02:34.6]}
10. Be3 {[%clk 0:02:04.7]} 10... Bxe3+ {[%clk 0:02:30.6]} 11. Kxe3 {[%clk
0:02:05.6]} 11... Qb6+ {[%clk 0:02:27.7]} 12. Kd2 {[%clk 0:02:01.3]} 12... Qxb2+
{[%clk 0:02:23.7]} 13. Qc2 {[%clk 0:01:59.5]} 13... Qxa1 {[%clk 0:02:21.1]} 14.
Rc1 {[%clk 0:01:50.3]} 14... d4 {[%clk 0:02:16.2]} 15. Na3 {[%clk 0:01:48.7]}
15... dxc3+ {[%clk 0:02:14.3]} 16. Nxc3 {[%clk 0:01:47.9]} 16... Nd4 {[%clk
0:02:06.2]} 17. Qa4 {[%clk 0:01:44.6]} 17... Qb2+ {[%clk 0:02:03]} 18. Kd1
{[%clk 0:01:35.6]} 18... Rd8 {[%clk 0:01:56.3]} 19. Nc2 {[%clk 0:01:00.7]} 0-1

[Event "*** Titled Tuesday Blitz"]
[Site "Chess.com"]
[Date "2021.02.16"]
[Round "2"]
[White "Mazanchenko_Dmitry"]
[Black "ChessFighter1975"]
[Result "0-1"]
[WhiteElo "2109"]
[BlackElo "2407"]
[TimeControl "180+1"]
[EndTime "10:15:57 PST"]
[Termination "ChessFighter1975 won on time"]

1. e4 {[%clk 0:01:59]} 1... d6 {[%clk 0:03:00.3]} 2. d4 {[%clk 0:01:57.1]} 2...
Nf6 {[%clk 0:03:00.9]} 3. Nc3 {[%clk 0:01:57.3]} 3... Nbd7 {[%clk 0:03:01.5]} 4.
Be3 {[%clk 0:01:55.9]} 4... e5 {[%clk 0:03:01.9]} 5. Nf3 {[%clk 0:01:53.9]} 5...
Be7 {[%clk 0:03:01.1]} 6. Bc4 {[%clk 0:01:50]} 6... c6 {[%clk 0:03:01.3]} 7. h3
{[%clk 0:01:28.1]} 7... b5 {[%clk 0:02:58.8]} 8. Bd3 {[%clk 0:01:12.4]} 8... Bb7
{[%clk 0:02:58.1]} 9. O-O {[%clk 0:00:57.5]} 9... O-O {[%clk 0:02:57.7]} 10. a3
{[%clk 0:00:50.2]} 10... a5 {[%clk 0:02:57.6]} 11. d5 {[%clk 0:00:43.9]} 11...
cxd5 {[%clk 0:02:57.3]} 12. exd5 {[%clk 0:00:41.4]} 12... b4 {[%clk 0:02:56.2]}
13. axb4 {[%clk 0:00:40.1]} 13... axb4 {[%clk 0:02:57.1]} 14. Rxa8 {[%clk
0:00:37]} 14... Qxa8 {[%clk 0:02:58]} 15. Ne4 {[%clk 0:00:35.2]} 15... Nxd5
{[%clk 0:02:53.1]} 16. Bd2 {[%clk 0:00:28.4]} 16... h6 {[%clk 0:02:42.7]} 0-1

[Event "*** Titled Tuesday Blitz"]
[Site "Chess.com"]
[Date "2021.02.16"]
[Round "2"]
[White "Tashik"]
[Black "beto-betun"]
[Result "1-0"]
[WhiteElo "2430"]
[BlackElo "2182"]
[TimeControl "180+1"]
[EndTime "10:16:25 PST"]
[Termination "Tashik won by resignation"]

1. c4 {[%clk 0:03:00.9]} 1... c5 {[%clk 0:02:59.3]} 2. Nf3 {[%clk 0:03:00.2]}
2... Nc6 {[%clk 0:02:59.6]} 3. d4 {[%clk 0:03:00.8]} 3... cxd4 {[%clk
0:02:58.9]} 4. Nxd4 {[%clk 0:03:01.7]} 4... g6 {[%clk 0:02:59.4]} 5. e4 {[%clk
0:03:01.2]} 5... Bg7 {[%clk 0:02:59.1]} 6. Be3 {[%clk 0:03:01.7]} 6... d6 {[%clk
0:02:58]} 7. Nc3 {[%clk 0:03:00]} 7... Nf6 {[%clk 0:02:56.8]} 8. Be2 {[%clk
0:03:00.6]} 8... O-O {[%clk 0:02:57.2]} 9. O-O {[%clk 0:03:01]} 9... Nxd4 {[%clk
0:02:52.8]} 10. Bxd4 {[%clk 0:03:00.3]} 10... Be6 {[%clk 0:02:52.3]} 11. Rc1
{[%clk 0:02:53.4]} 11... Rc8 {[%clk 0:02:47.8]} 12. b3 {[%clk 0:02:52.9]} 12...
b6 {[%clk 0:02:44.5]} 13. f4 {[%clk 0:02:47.7]} 13... Nd7 {[%clk 0:02:42.2]} 14.
Bxg7 {[%clk 0:02:43.5]} 14... Kxg7 {[%clk 0:02:43.1]} 15. f5 {[%clk 0:02:44]}
15... Nc5 {[%clk 0:02:28.6]} 16. fxe6 {[%clk 0:02:39]} 16... Nxe6 {[%clk
0:02:29.5]} 17. Bg4 {[%clk 0:02:36.9]} 17... Rc5 {[%clk 0:02:24.2]} 18. Bxe6
{[%clk 0:02:20.1]} 18... fxe6 {[%clk 0:02:25.1]} 19. Qg4 {[%clk 0:02:16.3]}
19... Qc8 {[%clk 0:01:51.4]} 20. Rxf8 {[%clk 0:02:12.4]} 20... Kxf8 {[%clk
0:01:52.3]} 21. Rf1+ {[%clk 0:02:08.9]} 21... Kg7 {[%clk 0:01:51.3]} 22. Ne2
{[%clk 0:02:08.8]} 22... Re5 {[%clk 0:01:39.4]} 23. Nd4 {[%clk 0:02:02.8]} 23...
Qg8 {[%clk 0:01:36.3]} 24. Nc6 {[%clk 0:01:48.5]} 24... h5 {[%clk 0:01:17.2]}
25. Qh4 {[%clk 0:01:40.9]} 1-0

[Event "*** Titled Tuesday Blitz"]
[Site "Chess.com"]
[Date "2021.02.16"]
[Round "2"]
[White "Alex-11211"]
[Black "kuban1991"]
[Result "0-1"]
[WhiteElo "2432"]
[BlackElo "2877"]
[TimeControl "180+1"]
[EndTime "10:16:39 PST"]
[Termination "kuban1991 won by resignation"]

1. e4 {[%clk 0:03:00.9]} 1... e6 {[%clk 0:02:57.4]} 2. Nf3 {[%clk 0:03:00.9]}
2... d5 {[%clk 0:02:58.3]} 3. Nc3 {[%clk 0:03:01.5]} 3... Nf6 {[%clk 0:02:55.8]}
4. e5 {[%clk 0:03:01.4]} 4... Nfd7 {[%clk 0:02:56.1]} 5. d4 {[%clk 0:03:02]}
5... c5 {[%clk 0:02:56.7]} 6. dxc5 {[%clk 0:03:02]} 6... Nc6 {[%clk 0:02:56.6]}
7. Bf4 {[%clk 0:03:01.5]} 7... Be7 {[%clk 0:02:56.4]} 8. h4 {[%clk 0:02:57.6]}
8... Nxc5 {[%clk 0:02:56.7]} 9. Bd3 {[%clk 0:02:56]} 9... a6 {[%clk 0:02:57]}
10. h5 {[%clk 0:02:51.5]} 10... h6 {[%clk 0:02:53.5]} 11. Rh3 {[%clk 0:02:51.3]}
11... b5 {[%clk 0:02:53.4]} 12. Rg3 {[%clk 0:02:50.6]} 12... Bf8 {[%clk
0:02:53.8]} 13. Kf1 {[%clk 0:02:43.5]} 13... Bb7 {[%clk 0:02:53.2]} 14. Ne2
{[%clk 0:02:41.1]} 14... Ne4 {[%clk 0:02:47.6]} 15. Rg4 {[%clk 0:02:24.6]} 15...
Qb6 {[%clk 0:02:45.4]} 16. Be3 {[%clk 0:02:05.9]} 16... Qc7 {[%clk 0:02:45.2]}
17. Bxe4 {[%clk 0:01:56.6]} 17... dxe4 {[%clk 0:02:46.1]} 18. Rxe4 {[%clk
0:01:57.2]} 18... Rd8 {[%clk 0:02:39.7]} 19. Qe1 {[%clk 0:01:54.1]} 19... Nxe5
{[%clk 0:02:36.9]} 20. Rxe5 {[%clk 0:01:39.8]} 20... Bxf3 {[%clk 0:02:36.6]} 21.
Bf4 {[%clk 0:01:04.4]} 21... Bd6 {[%clk 0:02:33.6]} 22. Nd4 {[%clk 0:01:04.1]}
22... Qc4+ {[%clk 0:02:31.4]} 23. Kg1 {[%clk 0:00:52.8]} 23... Qxd4 {[%clk
0:02:31.7]} 24. Rxe6+ {[%clk 0:00:51.9]} 24... fxe6 {[%clk 0:02:32.6]} 25. Qxe6+
{[%clk 0:00:52.4]} 25... Kf8 {[%clk 0:02:32.8]} 26. Qf5+ {[%clk 0:00:22.7]}
26... Qf6 {[%clk 0:02:32.5]} 27. Bxd6+ {[%clk 0:00:21.7]} 27... Rxd6 {[%clk
0:02:32.3]} 28. Qc8+ {[%clk 0:00:22.3]} 28... Rd8 {[%clk 0:02:32.1]} 29. Qc5+
{[%clk 0:00:22.4]} 29... Kf7 {[%clk 0:02:28.8]} 30. Qc7+ {[%clk 0:00:20.2]}
30... Kg8 {[%clk 0:02:23]} 31. gxf3 {[%clk 0:00:20.5]} 31... Kh7 {[%clk
0:02:22.8]} 32. Re1 {[%clk 0:00:18.9]} 32... Rhe8 {[%clk 0:02:22.5]} 33. Re4
{[%clk 0:00:14.8]} 0-1

[Event "*** Titled Tuesday Blitz"]
[Site "Chess.com"]
[Date "2021.02.16"]
[Round "2"]
[White "stolencandy13"]
[Black "Dedic8"]
[Result "0-1"]
[WhiteElo "2511"]
[BlackElo "2825"]
[TimeControl "180+1"]
[EndTime "10:16:43 PST"]
[Termination "Dedic8 won by resignation"]

1. e4 {[%clk 0:03:00.9]} 1... e5 {[%clk 0:02:59.9]} 2. Nf3 {[%clk 0:02:59.4]}
2... Nc6 {[%clk 0:03:00.2]} 3. Nc3 {[%clk 0:02:59.8]} 3... Nf6 {[%clk
0:02:57.6]} 4. d4 {[%clk 0:03:00.3]} 4... exd4 {[%clk 0:02:57.3]} 5. Nxd4 {[%clk
0:03:01.2]} 5... Nxe4 {[%clk 0:02:57.2]} 6. Nxe4 {[%clk 0:02:51.8]} 6... Qe7
{[%clk 0:02:57.1]} 7. f3 {[%clk 0:02:46.1]} 7... d5 {[%clk 0:02:44.7]} 8. Bb5
{[%clk 0:02:31.1]} 8... Bd7 {[%clk 0:02:44.1]} 9. Nxc6 {[%clk 0:02:24]} 9...
bxc6 {[%clk 0:02:45]} 10. Bd3 {[%clk 0:02:23.6]} 10... dxe4 {[%clk 0:02:26.9]}
11. fxe4 {[%clk 0:02:19.1]} 11... Qh4+ {[%clk 0:02:26.9]} 12. g3 {[%clk
0:02:18.2]} 12... Qh3 {[%clk 0:02:27.3]} 13. Qf3 {[%clk 0:02:14]} 13... Bb4+
{[%clk 0:02:13.5]} 14. c3 {[%clk 0:02:09]} 14... Bc5 {[%clk 0:02:13.7]} 15. Be3
{[%clk 0:01:54]} 15... Bg4 {[%clk 0:02:13.6]} 16. Qf2 {[%clk 0:01:21.5]} 16...
Bxe3 {[%clk 0:02:13.6]} 17. Qxe3 {[%clk 0:01:20.4]} 17... Qg2 {[%clk 0:02:14]}
18. Rf1 {[%clk 0:01:07.7]} 18... Qxb2 {[%clk 0:02:12.8]} 19. Rc1 {[%clk
0:01:03.4]} 19... O-O {[%clk 0:02:12.3]} 20. Rc2 {[%clk 0:01:02.2]} 20... Qb6
{[%clk 0:02:06.3]} 21. Kf2 {[%clk 0:00:59.5]} 21... Rad8 {[%clk 0:02:02.4]} 22.
Bc4 {[%clk 0:00:55.1]} 22... Bd1 {[%clk 0:01:33.9]} 23. Rc1 {[%clk 0:00:46.6]}
23... Rd2+ {[%clk 0:01:32]} 24. Be2 {[%clk 0:00:38.1]} 24... Rxe2+ {[%clk
0:01:31.9]} 0-1

[Event "*** Titled Tuesday Blitz"]
[Site "Chess.com"]
[Date "2021.02.16"]
[Round "2"]
[White "attack2mateU"]
[Black "Gerodot71"]
[Result "1-0"]
[WhiteElo "2709"]
[BlackElo "2470"]
[TimeControl "180+1"]
[EndTime "10:16:44 PST"]
[Termination "attack2mateU won by resignation"]

1. e4 {[%clk 0:03:00.9]} 1... e5 {[%clk 0:02:58.9]} 2. Nf3 {[%clk 0:03:00.9]}
2... Nc6 {[%clk 0:02:59]} 3. Bc4 {[%clk 0:03:01.5]} 3... Bc5 {[%clk 0:02:58.2]}
4. c3 {[%clk 0:03:01.4]} 4... Nf6 {[%clk 0:02:56.5]} 5. d4 {[%clk 0:03:01.8]}
5... exd4 {[%clk 0:02:55.3]} 6. e5 {[%clk 0:03:02.1]} 6... d5 {[%clk 0:02:52.6]}
7. Bb5 {[%clk 0:03:02.1]} 7... Ne4 {[%clk 0:02:52.6]} 8. cxd4 {[%clk 0:03:02.8]}
8... Bb6 {[%clk 0:02:52.9]} 9. Nc3 {[%clk 0:03:02.8]} 9... O-O {[%clk
0:02:48.4]} 10. Be3 {[%clk 0:03:02.8]} 10... Ne7 {[%clk 0:02:46.7]} 11. Bd3
{[%clk 0:02:49.1]} 11... Nxc3 {[%clk 0:02:37.4]} 12. bxc3 {[%clk 0:02:50]} 12...
Bf5 {[%clk 0:02:37.5]} 13. O-O {[%clk 0:02:20.8]} 13... f6 {[%clk 0:02:16.9]}
14. exf6 {[%clk 0:02:10]} 14... Rxf6 {[%clk 0:02:17.8]} 15. Bg5 {[%clk
0:02:09.8]} 15... Bxd3 {[%clk 0:01:56]} 16. Qxd3 {[%clk 0:02:02.2]} 16... Rf7
{[%clk 0:01:47.2]} 17. Rae1 {[%clk 0:01:48.7]} 17... Qd6 {[%clk 0:01:43]} 18.
Ne5 {[%clk 0:01:48.3]} 18... Raf8 {[%clk 0:01:32]} 19. Nxf7 {[%clk 0:01:46.8]}
19... Rxf7 {[%clk 0:01:32.9]} 20. Bxe7 {[%clk 0:01:41.2]} 20... Rxe7 {[%clk
0:01:33.8]} 21. Rxe7 {[%clk 0:01:41.1]} 21... Qxe7 {[%clk 0:01:34.7]} 22. Qf5
{[%clk 0:01:39.1]} 22... c6 {[%clk 0:01:25.6]} 23. g3 {[%clk 0:01:30]} 23... g6
{[%clk 0:01:25.4]} 24. Qd3 {[%clk 0:01:21.8]} 24... c5 {[%clk 0:01:23]} 25. dxc5
{[%clk 0:01:20.9]} 25... Qxc5 {[%clk 0:01:23.9]} 26. Qd2 {[%clk 0:01:16.9]}
26... Ba5 {[%clk 0:01:20.4]} 27. Rd1 {[%clk 0:01:16.7]} 27... Bxc3 {[%clk
0:01:14.1]} 28. Qxd5+ {[%clk 0:01:16.5]} 28... Qxd5 {[%clk 0:01:15]} 29. Rxd5
{[%clk 0:01:16.9]} 29... Bd4 {[%clk 0:01:09.3]} 30. Rxd4 {[%clk 0:01:16.7]} 1-0

[Event "*** Titled Tuesday Blitz"]
[Site "Chess.com"]
[Date "2021.02.16"]
[Round "2"]
[White "Indianlad"]
[Black "Titus369"]
[Result "1-0"]
[WhiteElo "2919"]
[BlackElo "2565"]
[TimeControl "180+1"]
[EndTime "10:16:55 PST"]
[Termination "Indianlad won by resignation"]

1. Nf3 {[%clk 0:03:00.9]} 1... Nf6 {[%clk 0:02:50.7]} 2. c4 {[%clk 0:03:00.8]}
2... e6 {[%clk 0:02:46.2]} 3. Nc3 {[%clk 0:02:59.4]} 3... d5 {[%clk 0:02:44.9]}
4. cxd5 {[%clk 0:02:59.2]} 4... exd5 {[%clk 0:02:45.8]} 5. d4 {[%clk 0:02:59.4]}
5... Be7 {[%clk 0:02:44]} 6. Bf4 {[%clk 0:02:59.2]} 6... c6 {[%clk 0:02:43.7]}
7. h3 {[%clk 0:02:59.5]} 7... O-O {[%clk 0:02:42.2]} 8. e3 {[%clk 0:03:00]} 8...
Re8 {[%clk 0:02:42.4]} 9. Bd3 {[%clk 0:03:00.1]} 9... Nbd7 {[%clk 0:02:42.8]}
10. Qc2 {[%clk 0:03:00.2]} 10... Nf8 {[%clk 0:02:43.6]} 11. g4 {[%clk
0:02:59.7]} 11... Ne6 {[%clk 0:02:43.8]} 12. Be5 {[%clk 0:02:59.1]} 12... g6
{[%clk 0:02:39.8]} 13. O-O-O {[%clk 0:02:59.3]} 13... a5 {[%clk 0:02:33.3]} 14.
Rdg1 {[%clk 0:02:59.5]} 14... Bd6 {[%clk 0:02:22.7]} 15. h4 {[%clk 0:02:59.2]}
15... Bxe5 {[%clk 0:02:15.9]} 16. Nxe5 {[%clk 0:02:59.2]} 16... c5 {[%clk
0:02:09.4]} 17. h5 {[%clk 0:02:49.9]} 17... cxd4 {[%clk 0:02:05.9]} 18. hxg6
{[%clk 0:02:50.1]} 18... fxg6 {[%clk 0:02:04.3]} 19. Bxg6 {[%clk 0:02:47.7]}
19... Re7 {[%clk 0:01:51]} 20. g5 {[%clk 0:02:38.2]} 20... Ne4 {[%clk
0:01:24.9]} 21. Nxe4 {[%clk 0:02:35.3]} 21... dxe4 {[%clk 0:01:20.3]} 22. Bxh7+
{[%clk 0:02:33.7]} 22... Kg7 {[%clk 0:00:38]} 23. Qxe4 {[%clk 0:02:32.9]} 23...
Nf8 {[%clk 0:00:36.6]} 24. Qf4 {[%clk 0:02:22.7]} 24... Qd6 {[%clk 0:00:25.7]}
25. g6 {[%clk 0:02:09.3]} 25... Qc7+ {[%clk 0:00:08.2]} 26. Kb1 {[%clk
0:02:08.9]} 26... Rxe5 {[%clk 0:00:07.2]} 27. Qh6+ {[%clk 0:02:08.5]} 27... Kf6
{[%clk 0:00:07.6]} 28. Qxf8+ {[%clk 0:02:07.9]} 28... Ke6 {[%clk 0:00:07.8]} 29.
g7 {[%clk 0:02:07.5]} 1-0